[Event "Turkish Club Cup 2019"]
[Site "Konya"]
[Date "2019.07.17"]
[Round "3"]
[White "Mecit, Emre"]
[Black "Cakiroglu, Metin"]
[Result "1/2-1/2"]
[ECO "B04"]
[WhiteElo "2065"]
[BlackElo "1970"]
[Annotator "NA"]
[PlyCount "103"]
[EventDate "2019.07.16"]
[EventType "team-tourn"]
[EventCountry "TUR"]
[SourceTitle "playchess.com"]
[Source "ChessBase"]
[SourceQuality "1"]
[TimeControl "5400+30"]

1. e4 Nf6 2. e5 Nd5 3. Nf3 d6 4. d4 dxe5 5. Nxe5 c6 6. Bd3 Nd7 7. Nf3 N7f6 8. h3 Nb4 9. Bc4 Bf5 10. Bb3 e6 11. O-O Be7 12. a3 Nbd5 13. c4 Nb6 14. Qe2 O-O 15. Rd1 Nfd7 16. Nc3 c5 17. dxc5 Bxc5 18. Na4 Qc7 19. Nxc5 Nxc5 20. Ba2 Rfd8 21. Be3 Bd3 22. Qe1 Bxc4 {[%emt 1:07:00]} 23. Bxc4 {[%emt 0:55:30]} Rxd1 {[%emt 0:03:30]} 24. Rxd1 {[%emt 0:06:30]} Nxc4 {[%emt 0:00:30]} 25. Bxc5 {[%emt 0:04:30]} Qxc5 {[%emt 0:00:30]} 26. Qc3 {[%emt 0:00:30]} Qc8 {[%emt 0:06:30]} 27. Ng5 {[%emt 0:10:30]} h6 {[%emt 0:01:30]} 28. Nxf7 {[%emt 0:01:30]} Kxf7 {[%emt 0:00:30]} 29. Rc1 {[%emt 0:00:00]} b5 {[%emt 0:04:43]} 30. b3 {[%emt 0:00:00]} Qc6 {[%emt 0:00:57]} 31. bxc4 {[%emt 0:01:30]} bxc4 {[%emt 0:00:06]} 32. Qxc4 {[%emt 0:00:30]} Qxc4 {[%emt 0:00:30]} 33. Rxc4 {[%emt 0:00:00]} a5 {[%emt 0:01:00]} 34. g3 {[%emt 0:06:00]} Ra7 {[%emt 0:00:12]} 35. Kg2 {[%emt 0:00:30]} Ke7 {[%emt 0:00:30]} 36. h4 {[%emt 0:00:30]} Kd6 {[%emt 0:00:02]} 37. Kf3 {[%emt 0:00:00]} Kd5 {[%emt 0:00:30]} 38. Rg4 {[%emt 0:00:00]} Rc7 {[%emt 0:02:01]} 39. Ra4 {[%emt 0:00:00]} Rc3+ {[%emt 0:00:30]} 40. Ke2 {[%emt 0:01:00]} Rc5 {[%emt 0:00:03]} 41. Kd3 {[%emt 0:00:30]} e5 {[%emt 0:02:47]} 42. Rg4 {[%emt 0:00:30]} Rb5 {[%emt 0:01:39]} 43. Rxg7 {[%emt 0:02:49]} Rb3+ {[%emt 0:00:30]} 44. Ke2 {[%emt 0:00:30]} Rxa3 {[%emt 0:00:00]} 45. Rg6 {[%emt 0:00:00]} Rc3 {[%emt 0:01:45]} 46. Rxh6 {[%emt 0:00:30]} a4 {[%emt 0:00:30]} 47. Ra6 {[%emt 0:00:30]} a3 {[%emt 0:00:00]} 48. h5 {[%emt 0:00:00]} Kc4 {[%emt 0:00:22]} 49. h6 {[%emt 0:01:27]} Kb3 {[%emt 0:00:04]} 50. g4 {[%emt 0:00:00]} Rh3 {[%emt 0:04:01]} 51. Rb6+ {[%emt 0:07:26]} Kc2 {[%emt 0:00:36]} 52. Rc6+ {[%emt 0:01:14]} 1/2-1/2

[Event "Turkish Club Cup 2019"]
[Site "Konya"]
[Date "2019.07.17"]
[Round "3"]
[White "Kocyigit, Buse Naz"]
[Black "Olmez, Sude"]
[Result "1-0"]
[ECO "D24"]
[WhiteElo "2045"]
[BlackElo "1180"]
[Annotator "NA"]
[PlyCount "55"]
[EventDate "2019.07.16"]
[EventType "team-tourn"]
[EventCountry "TUR"]
[SourceTitle "playchess.com"]
[Source "ChessBase"]
[SourceQuality "1"]
[TimeControl "5400+30"]

1. d4 d5 2. Nf3 Bf5 3. c4 dxc4 4. e3 e6 5. Bxc4 Nf6 6. Nc3 Nbd7 7. O-O Bb4 8. Qb3 Bxc3 9. bxc3 Nb6 10. Ba3 {[%emt 0:25:00]} Nxc4 {[%emt 0:44:00]} 11. Qxc4 {[%emt 0:00:00]} Be4 {[%emt 0:04:30]} 12. Nd2 {[%emt 0:00:00]} Bc6 13. Qd3 Nd5 14. c4 Ne7 15. e4 O-O 16. f4 b6 {[%emt 0:24:30]} 17. f5 {[%emt 0:22:30]} exf5 {[%emt 0:03:30]} 18. exf5 {[%emt 0:00:00]} Re8 {[%emt 0:00:30]} 19. f6 {[%emt 0:02:00]} Ng6 {[%emt 0:01:30]} 20. d5 {[%emt 0:06:30]} Bd7 {[%emt 0:05:51]} 21. fxg7 {[%emt 0:04:30]} Kxg7 {[%emt 0:00:28]} 22. Bb2+ {[%emt 0:03:30]} Kg8 {[%emt 0:01:52]} 23. Qc3 {[%emt 0:00:30]} Ne5 {[%emt 0:00:54]} 24. Qg3+ {[%emt 0:04:30]} Ng6 {[%emt 0:01:28]} 25. Bf6 {[%emt 0:00:00]} Qc8 {[%emt 0:00:30]} 26. Qg5 {[%emt 0:00:00]} Kf8 {[%emt 0:05:13]} 27. Qh6+ {[%emt 0:00:30]} Kg8 {[%emt 0:00:30]} 28. Qg7# {[%emt 0:00:30]} 1-0

[Event "Turkish Club Cup 2019"]
[Site "Konya"]
[Date "2019.07.17"]
[Round "3"]
[White "Guner, Bulent"]
[Black "Eroz, Enis"]
[Result "1-0"]
[ECO "E12"]
[WhiteElo "1979"]
[BlackElo "1618"]
[Annotator "NA"]
[PlyCount "62"]
[EventDate "2019.07.16"]
[EventType "team-tourn"]
[EventCountry "TUR"]
[SourceTitle "playchess.com"]
[Source "ChessBase"]
[SourceQuality "1"]
[TimeControl "5400+30"]

1. d4 Nf6 2. Nf3 e6 3. c4 b6 4. a3 Bb7 5. Nc3 d5 6. cxd5 exd5 7. g3 a6 8. Bf4 Bd6 9. Bxd6 Qxd6 10. Bg2 Nbd7 11. O-O O-O 12. Qc2 Rfe8 13. Rfd1 h6 14. Rac1 Rac8 15. e3 Red8 16. Nh4 Qe6 17. Ne2 g5 18. Nf5 h5 19. h3 Ne4 20. g4 Ndf6 21. Bf3 c5 {[%emt 0:50:30]} 22. dxc5 {[%emt 1:04:00]} bxc5 {[%emt 0:01:30]} 23. Qd3 {[%emt 0:11:30]} Qe5 {[%emt 0:03:30]} 24. b3 {[%emt 0:07:18]} Kh8 {[%emt 0:08:30]} 25. Neg3 {[%emt 0:02:34]} h4 {[%emt 0:00:30]} 26. Nxe4 {[%emt 0:01:51]} dxe4 {[%emt 0:00:30]} 27. Qxd8+ {[%emt 0:00:07]} Rxd8 {[%emt 0:00:30]} 28. Rxd8+ {[%emt 0:00:31]} Kh7 {[%emt 0:00:00]} 29. Bg2 {[%emt 0:00:08]} Kg6 {[%emt 0:03:00]} 30. Rcd1 {[%emt 0:00:33]} Qe6 {[%emt 0:01:30]} 31. R1d6 {[%emt 0:00:59]} Qxb3 {[%emt 0:03:30]} 1-0

[Event "Turkish Club Cup 2019"]
[Site "Konya"]
[Date "2019.07.17"]
[Round "3"]
[White "Kul, Ozdemir Efe"]
[Black "Eren, Yusuf Kemal"]
[Result "1-0"]
[ECO "A36"]
[WhiteElo "1974"]
[BlackElo "1858"]
[Annotator "NA"]
[PlyCount "97"]
[EventDate "2019.07.16"]
[EventType "team-tourn"]
[EventCountry "TUR"]
[SourceTitle "playchess.com"]
[Source "ChessBase"]
[SourceQuality "1"]
[TimeControl "5400+30"]

1. c4 {[%emt 0:00:30]} Nf6 {[%emt 0:00:30]} 2. Nc3 {[%emt 0:00:30]} g6 {[%emt 0:00:30]} 3. e4 {[%emt 0:00:00]} d6 {[%emt 0:00:00]} 4. g3 {[%emt 0:00:00]} Bg7 {[%emt 0:00:00]} 5. Bg2 {[%emt 0:00:30]} O-O {[%emt 0:00:30]} 6. Nge2 {[%emt 0:00:30]} c5 {[%emt 0:05:30]} 7. h3 {[%emt 0:00:00]} Nc6 {[%emt 0:00:30]} 8. O-O {[%emt 0:00:00]} a6 {[%emt 0:00:30]} 9. d3 {[%emt 0:00:30]} Rb8 {[%emt 0:00:30]} 10. b3 {[%emt 0:03:30]} b5 {[%emt 0:04:30]} 11. Be3 {[%emt 0:03:30]} b4 {[%emt 0:10:30]} 12. Na4 {[%emt 0:00:30]} Nd7 {[%emt 0:00:30]} 13. d4 {[%emt 0:00:30]} cxd4 {[%emt 0:04:30]} 14. Nxd4 {[%emt 0:00:30]} Bb7 {[%emt 0:01:30]} 15. Qd2 {[%emt 0:03:30]} Nf6 {[%emt 0:03:30]} 16. Rad1 {[%emt 0:04:30]} Qa5 {[%emt 0:09:30]} 17. Nc2 {[%emt 0:18:30]} Nd7 {[%emt 0:01:30]} 18. f4 {[%emt 0:20:30]} Rbd8 {[%emt 0:06:30]} 19. Qf2 {[%emt 0:00:30]} Rc8 {[%emt 0:06:30]} 20. e5 {[%emt 0:02:30]} Qc7 {[%emt 0:02:30]} 21. Nb6 {[%emt 0:05:30]} Nxb6 {[%emt 0:02:30]} 22. Bxb6 {[%emt 0:00:00]} Qb8 {[%emt 0:00:30]} 23. exd6 {[%emt 0:01:00]} exd6 {[%emt 0:01:30]} 24. Bxc6 {[%emt 0:01:30]} Bxc6 {[%emt 0:05:30]} 25. Nxb4 {[%emt 0:00:30]} Bf3 {[%emt 0:00:30]} 26. Ba7 {[%emt 0:04:30]} Qxb4 {[%emt 0:02:30]} 27. Qxf3 {[%emt 0:00:30]} Rfe8 {[%emt 0:00:30]} 28. f5 {[%emt 0:00:30]} gxf5 {[%emt 0:04:30]} 29. Qxf5 {[%emt 0:00:30]} Qb7 {[%emt 0:06:31]} 30. Bd4 {[%emt 0:01:30]} Re2 {[%emt 0:00:38]} 31. Rf2 {[%emt 0:05:30]} Rce8 {[%emt 0:03:18]} 32. Qg4 {[%emt 0:05:31]} f5 {[%emt 0:04:02]} 33. Qxg7+ {[%emt 0:00:47]} Qxg7 {[%emt 0:00:30]} 34. Bxg7 {[%emt 0:00:00]} Kxg7 {[%emt 0:01:26]} 35. Rxd6 {[%emt 0:00:00]} Re1+ {[%emt 0:02:14]} 36. Kg2 {[%emt 0:00:06]} Rc1 {[%emt 0:01:22]} 37. Rd5 {[%emt 0:01:09]} Ree1 {[%emt 0:00:16]} 38. Rdxf5 {[%emt 0:07:11]} Rg1+ {[%emt 0:01:25]} 39. Kf3 {[%emt 0:00:05]} Rc3+ {[%emt 0:00:00]} 40. Ke4 {[%emt 0:00:24]} Rgxg3 {[%emt 0:00:11]} 41. R5f3 {[%emt 0:00:18]} Rxh3 {[%emt 0:01:42]} 42. Rg2+ {[%emt 0:00:09]} Kh6 {[%emt 0:00:23]} 43. Rxh3+ {[%emt 0:00:30]} Rxh3 {[%emt 0:00:00]} 44. c5 {[%emt 0:00:00]} Rc3 {[%emt 0:01:17]} 45. Kd4 {[%emt 0:00:51]} Rc1 {[%emt 0:00:02]} 46. b4 {[%emt 0:00:00]} Kh5 {[%emt 0:00:26]} 47. a4 {[%emt 0:00:47]} Rb1 {[%emt 0:01:15]} 48. Kc3 {[%emt 0:01:10]} h6 {[%emt 0:00:41]} 49. c6 {[%emt 0:00:09]} 1-0

[Event "Turkish Club Cup 2019"]
[Site "Konya"]
[Date "2019.07.17"]
[Round "3"]
[White "Salman, Ilhan Serhat"]
[Black "Unlu, Ahmet Berkin"]
[Result "1-0"]
[ECO "E60"]
[WhiteElo "1950"]
[BlackElo "1806"]
[Annotator "NA"]
[PlyCount "117"]
[EventDate "2019.07.16"]
[EventType "team-tourn"]
[EventCountry "TUR"]
[SourceTitle "playchess.com"]
[Source "ChessBase"]
[SourceQuality "1"]
[TimeControl "5400+30"]

1. Nf3 Nf6 2. b3 d6 3. d4 g6 4. Bb2 Bg7 5. g3 O-O 6. Bg2 c6 7. O-O Bg4 8. c4 Bxf3 9. Bxf3 d5 10. cxd5 cxd5 11. Nc3 Na6 12. Rc1 Qd7 13. Ba3 Rfd8 14. e3 Rac8 15. Qd3 Nc7 16. Rc2 Bf8 17. Rfc1 e6 18. Bxf8 Kxf8 19. Na4 Na6 20. Qd2 Ne4 21. Bxe4 dxe4 22. Nc5 Nxc5 23. Rxc5 Rxc5 24. Rxc5 {[%emt 0:44:00]} b6 {[%emt 1:07:00]} 25. Rc4 {[%emt 0:00:30]} Rc8 {[%emt 0:02:30]} 26. d5 {[%emt 0:09:30]} Rxc4 {[%emt 0:07:30]} 27. bxc4 {[%emt 0:00:00]} exd5 {[%emt 0:00:30]} 28. cxd5 {[%emt 0:00:00]} Qa4 {[%emt 0:02:30]} 29. Kg2 {[%emt 0:02:30]} Ke7 {[%emt 0:02:30]} 30. Qc3 {[%emt 0:01:30]} f6 {[%emt 0:04:14]} 31. Qc7+ {[%emt 0:03:30]} Qd7 {[%emt 0:00:22]} 32. Qb8 {[%emt 0:00:30]} b5 {[%emt 0:02:25]} 33. Qg8 {[%emt 0:00:30]} Kd6 {[%emt 0:01:07]} 34. Qf8+ {[%emt 0:00:30]} Kxd5 {[%emt 0:05:19]} 35. Qxf6 {[%emt 0:00:30]} Kc4 {[%emt 0:00:17]} 36. Qe5 {[%emt 0:01:30]} Kd3 {[%emt 0:04:12]} 37. Qb2 {[%emt 0:00:30]} Kc4 {[%emt 0:05:35]} 38. Qc2+ {[%emt 0:02:30]} Kd5 {[%emt 0:00:12]} 39. Qc3 {[%emt 0:00:30]} Ke6 {[%emt 0:01:23]} 40. Qc2 {[%emt 0:01:30]} Qb7 {[%emt 0:00:23]} 41. Qb3+ {[%emt 0:02:30]} Qd5 {[%emt 0:01:21]} 42. Qa3 {[%emt 0:00:30]} Qb7 {[%emt 0:00:34]} 43. Qb4 {[%emt 0:00:30]} Qc6 {[%emt 0:00:50]} 44. Qf8 {[%emt 0:00:30]} a5 {[%emt 0:00:31]} 45. Qg8+ {[%emt 0:00:30]} Kd6 {[%emt 0:00:54]} 46. Qd8+ {[%emt 0:00:30]} Ke5 {[%emt 0:00:45]} 47. Qxa5 {[%emt 0:00:00]} Kf6 {[%emt 0:00:00]} 48. Qd8+ {[%emt 0:01:00]} Kg7 {[%emt 0:00:02]} 49. Qe7+ {[%emt 0:00:00]} Kg8 {[%emt 0:00:07]} 50. a3 {[%emt 0:02:00]} Qd5 {[%emt 0:00:27]} 51. Qb4 {[%emt 0:00:30]} Qc6 {[%emt 0:00:31]} 52. Qe7 {[%emt 0:01:30]} Qd5 {[%emt 0:00:14]} 53. h4 {[%emt 0:02:30]} Qc6 {[%emt 0:01:18]} 54. g4 {[%emt 0:00:30]} Qd5 {[%emt 0:00:29]} 55. Kg3 {[%emt 0:00:30]} Qc6 {[%emt 0:00:51]} 56. Kf4 {[%emt 0:01:30]} Qc2 {[%emt 0:00:25]} 57. Kg5 {[%emt 0:09:30]} Qxf2 {[%emt 0:01:00]} 58. Kh6 {[%emt 0:00:00]} Qf7 {[%emt 0:00:09]} 59. Qxf7+ {[%emt 0:00:00]} 1-0

[Event "Turkish Club Cup 2019"]
[Site "Konya"]
[Date "2019.07.17"]
[Round "3"]
[White "Oz, Ozan"]
[Black "Ozates, Mert"]
[Result "1/2-1/2"]
[ECO "B13"]
[WhiteElo "1923"]
[BlackElo "1758"]
[Annotator "NA"]
[PlyCount "72"]
[EventDate "2019.07.16"]
[EventType "team-tourn"]
[EventCountry "TUR"]
[SourceTitle "playchess.com"]
[Source "ChessBase"]
[SourceQuality "1"]
[TimeControl "5400+30"]

1. d4 {[%emt 0:00:30]} Nf6 {[%emt 0:00:30]} 2. Bf4 {[%emt 0:00:30]} d5 {[%emt 0:00:30]} 3. e3 {[%emt 0:00:30]} c5 {[%emt 0:00:00]} 4. Nc3 {[%emt 0:00:00]} cxd4 {[%emt 0:00:00]} 5. exd4 {[%emt 0:00:00]} a6 {[%emt 0:00:00]} 6. Bd3 {[%emt 0:00:00]} Nc6 {[%emt 0:00:00]} 7. Nge2 {[%emt 0:00:00]} Bg4 {[%emt 0:02:30]} 8. f3 {[%emt 0:00:30]} Bh5 {[%emt 0:00:00]} 9. g4 {[%emt 0:00:30]} Bg6 {[%emt 0:00:00]} 10. h4 {[%emt 0:00:30]} e6 {[%emt 0:02:30]} 11. h5 {[%emt 0:00:30]} Bxd3 {[%emt 0:00:30]} 12. Qxd3 {[%emt 0:00:00]} h6 {[%emt 0:01:30]} 13. O-O-O {[%emt 0:00:00]} Bd6 {[%emt 0:03:30]} 14. Qe3 {[%emt 0:02:30]} Na5 {[%emt 0:05:30]} 15. b3 {[%emt 0:02:30]} Qc7 {[%emt 0:08:30]} 16. g5 {[%emt 0:02:30]} Bxf4 {[%emt 0:11:30]} 17. Nxf4 {[%emt 0:00:30]} hxg5 {[%emt 0:00:00]} 18. Nfxd5 {[%emt 0:03:30]} Nxd5 {[%emt 0:03:00]} 19. Nxd5 {[%emt 0:00:30]} Qd6 {[%emt 0:13:30]} 20. c4 {[%emt 0:02:30]} b5 {[%emt 0:12:30]} 21. h6 {[%emt 0:26:30]} Rxh6 {[%emt 0:16:16]} 22. Rxh6 {[%emt 0:09:30]} gxh6 {[%emt 0:00:35]} 23. Nf6+ {[%emt 0:00:00]} Kf8 {[%emt 0:01:18]} 24. c5 {[%emt 0:04:00]} Qh2 {[%emt 0:02:16]} 25. Rd2 {[%emt 0:00:30]} Qg3 {[%emt 0:02:56]} 26. Nh5 {[%emt 0:13:30]} Qc7 {[%emt 0:04:13]} 27. Qe4 {[%emt 0:00:30]} Qc6 {[%emt 0:05:37]} 28. Qh7 {[%emt 0:15:00]} Qxf3 {[%emt 0:00:56]} 29. Qxh6+ {[%emt 0:00:32]} Ke8 {[%emt 0:01:59]} 30. Qxg5 {[%emt 0:00:42]} Qh1+ {[%emt 0:01:23]} 31. Rd1 {[%emt 0:02:00]} Qf3 {[%emt 0:00:10]} 32. Nf6+ {[%emt 0:03:31]} Kf8 {[%emt 0:00:48]} 33. Ng8 {[%emt 0:07:33]} Nxb3+ {[%emt 0:01:13]} 34. axb3 {[%emt 0:03:07]} Qc3+ {[%emt 0:00:15]} 35. Kb1 {[%emt 0:00:00]} Qxb3+ {[%emt 0:00:54]} 36. Kc1 {[%emt 0:00:00]} Qc3+ {[%emt 0:00:00]} 1/2-1/2

[Event "Turkish Club Cup 2019"]
[Site "Konya"]
[Date "2019.07.17"]
[Round "3"]
[White "Akbas, Umut Ata"]
[Black "Toren, Kadir"]
[Result "1-0"]
[ECO "C25"]
[WhiteElo "1912"]
[BlackElo "1736"]
[Annotator "NA"]
[PlyCount "89"]
[EventDate "2019.07.16"]
[EventType "team-tourn"]
[EventCountry "TUR"]
[SourceTitle "playchess.com"]
[Source "ChessBase"]
[SourceQuality "1"]
[TimeControl "5400+30"]

1. e4 {[%emt 0:00:30]} e5 {[%emt 0:00:30]} 2. Nc3 {[%emt 0:00:00]} Nc6 {[%emt 0:00:30]} 3. Bc4 {[%emt 0:00:00]} Bc5 {[%emt 0:00:30]} 4. Qg4 {[%emt 0:00:30]} g6 {[%emt 0:03:30]} 5. Qg3 {[%emt 0:00:30]} Nf6 {[%emt 0:02:30]} 6. d3 {[%emt 0:00:30]} Nh5 {[%emt 0:05:30]} 7. Qf3 {[%emt 0:00:30]} O-O {[%emt 0:01:30]} 8. Nge2 {[%emt 0:00:30]} Kg7 {[%emt 0:20:30]} 9. Nd5 {[%emt 0:08:30]} f5 {[%emt 0:04:30]} 10. Ng3 {[%emt 0:01:30]} Nf6 {[%emt 0:05:30]} 11. Bg5 {[%emt 0:04:30]} Nd4 {[%emt 0:01:30]} 12. Qd1 {[%emt 0:05:30]} Be7 {[%emt 0:06:30]} 13. Nxe7 {[%emt 0:01:30]} Qxe7 {[%emt 0:00:00]} 14. exf5 {[%emt 0:06:30]} h6 {[%emt 0:08:00]} 15. Bd2 {[%emt 0:07:30]} d5 {[%emt 0:02:30]} 16. Bb3 {[%emt 0:00:30]} Nxf5 {[%emt 0:01:30]} 17. Nxf5+ {[%emt 0:03:30]} Bxf5 {[%emt 0:00:30]} 18. O-O {[%emt 0:00:30]} Rad8 {[%emt 0:01:30]} 19. Qe2 {[%emt 0:00:30]} c5 {[%emt 0:03:30]} 20. Rae1 {[%emt 0:02:30]} b5 {[%emt 0:03:30]} 21. a3 {[%emt 0:02:30]} Rfe8 {[%emt 0:04:30]} 22. d4 {[%emt 0:02:30]} cxd4 {[%emt 0:02:30]} 23. Qxb5 {[%emt 0:01:30]} Rb8 {[%emt 0:01:31]} 24. Qa6 {[%emt 0:08:30]} Rb6 {[%emt 0:08:06]} 25. Qa4 {[%emt 0:00:30]} Bd7 {[%emt 0:00:42]} 26. Qxa7 {[%emt 0:00:30]} Reb8 {[%emt 0:00:59]} 27. Bf4 {[%emt 0:06:30]} R8b7 {[%emt 0:05:51]} 28. Rxe5 {[%emt 0:00:30]} Qc5 {[%emt 0:00:39]} 29. Qa8 {[%emt 0:01:30]} Rb8 {[%emt 0:00:47]} 30. Rxd5 {[%emt 0:00:00]} Nxd5 {[%emt 0:00:57]} 31. Bxb8 {[%emt 0:00:00]} Bc6 {[%emt 0:02:31]} 32. Be5+ {[%emt 0:00:30]} Kf7 {[%emt 0:00:33]} 33. Qh8 {[%emt 0:00:30]} Rxb3 {[%emt 0:02:05]} 34. cxb3 {[%emt 0:00:30]} d3 {[%emt 0:00:03]} 35. Qg7+ {[%emt 0:00:30]} Ke6 {[%emt 0:00:13]} 36. Bd4 {[%emt 0:00:00]} Qc2 {[%emt 0:00:38]} 37. Re1+ {[%emt 0:00:00]} Kd6 {[%emt 0:00:43]} 38. Qxg6+ {[%emt 0:01:30]} Kc7 {[%emt 0:00:06]} 39. Qf7+ {[%emt 0:00:30]} Kc8 {[%emt 0:01:11]} 40. Qh7 {[%emt 0:03:30]} Nc7 {[%emt 0:00:52]} 41. Bc3 {[%emt 0:01:30]} Nd5 {[%emt 0:00:23]} 42. Qxh6 {[%emt 0:01:30]} Kc7 {[%emt 0:00:37]} 43. Qd2 {[%emt 0:00:30]} Bb5 {[%emt 0:00:31]} 44. Qxc2 {[%emt 0:00:30]} dxc2 {[%emt 0:00:04]} 45. Bd2 {[%emt 0:00:30]} 1-0

[Event "Turkish Club Cup 2019"]
[Site "Konya"]
[Date "2019.07.17"]
[Round "3"]
[White "Aydin, Ismail"]
[Black "Kiran, Seyit Kaan"]
[Result "1-0"]
[ECO "E55"]
[WhiteElo "1896"]
[BlackElo "1230"]
[Annotator "NA"]
[PlyCount "81"]
[EventDate "2019.07.16"]
[EventType "team-tourn"]
[EventCountry "TUR"]
[SourceTitle "playchess.com"]
[Source "ChessBase"]
[SourceQuality "1"]
[TimeControl "5400+30"]

1. d4 {[%emt 0:00:30]} d5 {[%emt 0:00:30]} 2. Nf3 {[%emt 0:00:00]} Nf6 {[%emt 0:00:30]} 3. c4 {[%emt 0:00:00]} e6 {[%emt 0:00:30]} 4. Nc3 {[%emt 0:00:00]} Bb4 {[%emt 0:02:30]} 5. e3 {[%emt 0:00:00]} O-O {[%emt 0:01:30]} 6. Bd3 {[%emt 0:00:00]} Nbd7 {[%emt 0:00:30]} 7. O-O {[%emt 0:00:00]} c5 {[%emt 0:03:30]} 8. Qe2 {[%emt 0:01:30]} cxd4 {[%emt 0:05:30]} 9. exd4 {[%emt 0:01:30]} dxc4 {[%emt 0:01:30]} 10. Bxc4 {[%emt 0:00:30]} Nb6 {[%emt 0:00:30]} 11. Bb3 {[%emt 0:00:30]} Bd7 {[%emt 0:01:30]} 12. Ne5 {[%emt 0:01:30]} Rc8 {[%emt 0:02:30]} 13. Ne4 {[%emt 0:01:30]} Bc6 {[%emt 0:01:30]} 14. Ng5 {[%emt 0:00:30]} Bd5 {[%emt 0:03:30]} 15. Bc2 {[%emt 0:02:30]} Bd6 {[%emt 0:05:30]} 16. Rd1 {[%emt 0:02:30]} Qc7 {[%emt 0:06:30]} 17. Bd3 {[%emt 0:08:30]} Nc4 {[%emt 0:03:30]} 18. Bf4 {[%emt 0:01:30]} a6 {[%emt 0:08:30]} 19. Rac1 {[%emt 0:00:30]} Qe7 {[%emt 0:00:30]} 20. Bxc4 {[%emt 0:00:30]} Bxc4 {[%emt 0:00:30]} 21. Rxc4 {[%emt 0:00:00]} Nd5 {[%emt 0:01:30]} 22. Rxc8 {[%emt 0:02:00]} Rxc8 {[%emt 0:00:30]} 23. Qh5 {[%emt 0:00:30]} h6 {[%emt 0:00:00]} 24. Nh3 {[%emt 0:04:30]} Nxf4 {[%emt 0:05:00]} 25. Nxf4 {[%emt 0:01:30]} Qf6 {[%emt 0:00:30]} 26. Nfd3 {[%emt 0:00:30]} Rc2 {[%emt 0:01:30]} 27. Qf3 {[%emt 0:00:30]} Qe7 {[%emt 0:00:30]} 28. Rc1 {[%emt 0:00:30]} Rxc1+ {[%emt 0:01:30]} 29. Nxc1 {[%emt 0:00:00]} Bxe5 {[%emt 0:00:30]} 30. dxe5 {[%emt 0:00:00]} Qb4 {[%emt 0:00:30]} 31. Qc3 {[%emt 0:00:30]} Qb5 {[%emt 0:01:30]} 32. g3 {[%emt 0:00:00]} Qd5 {[%emt 0:00:30]} 33. a3 {[%emt 0:01:00]} g6 {[%emt 0:00:30]} 34. Nd3 {[%emt 0:00:00]} Kg7 {[%emt 0:00:30]} 35. h4 {[%emt 0:00:00]} Qe4 {[%emt 0:00:30]} 36. Nc5 {[%emt 0:00:30]} Qd5 {[%emt 0:00:30]} 37. Qe3 {[%emt 0:00:30]} Qd1+ {[%emt 0:02:30]} 38. Kh2 {[%emt 0:00:30]} Qc2 {[%emt 0:00:30]} 39. b4 {[%emt 0:00:00]} a5 {[%emt 0:00:30]} 40. bxa5 {[%emt 0:00:00]} Qa2 {[%emt 0:00:30]} 41. Nxb7 {[%emt 0:00:30]} 1-0

[Event "Turkish Club Cup 2019"]
[Site "Konya"]
[Date "2019.07.17"]
[Round "3"]
[White "Inan, Canberk"]
[Black "Ererdem, Gani Eren"]
[Result "1/2-1/2"]
[ECO "E12"]
[WhiteElo "1895"]
[BlackElo "2140"]
[Annotator "NA"]
[PlyCount "132"]
[EventDate "2019.07.16"]
[EventType "team-tourn"]
[EventCountry "TUR"]
[SourceTitle "playchess.com"]
[Source "ChessBase"]
[SourceQuality "1"]
[TimeControl "5400+30"]

1. d4 Nf6 2. Nf3 b6 3. c4 e6 4. a3 Ba6 5. Qc2 c5 6. d5 exd5 7. cxd5 g6 8. Nc3 Bg7 9. e4 Bxf1 10. Kxf1 d6 11. g3 O-O 12. Kg2 Re8 13. Bf4 Nh5 14. Bg5 Qd7 15. Qd3 a6 16. a4 Qc7 17. Nd2 Nd7 18. Nc4 Ne5 19. Nxe5 Bxe5 20. Rhe1 Bg7 21. Qd2 Nf6 22. e5 dxe5 23. Bxf6 Bxf6 24. d6 Qb7+ 25. Qd5 Ra7 26. f4 e4 27. Qxb7 Rxb7 28. Nxe4 Kg7 29. Re2 Bxb2 30. Rxb2 Rxe4 31. Rd1 Rd4 32. Rxd4 cxd4 33. Kf3 Kf6 34. Ke4 Ke6 35. Kxd4 Kxd6 36. g4 b5 37. Rb4 f6 38. h3 h6 39. Rb2 b4 40. a5 Rb5 41. Kc4 Rc5+ 42. Kd4 Rd5+ 43. Kc4 Rc5+ 44. Kd4 Rxa5 45. Rxb4 Rb5 46. Rc4 h5 47. Ra4 a5 48. gxh5 Rxh5 49. Ke4 Ke6 50. Ra3 Rb5 51. h4 {[%emt 1:54:35]} Rc5 {[%emt 1:54:39]} 52. Kd4 {[%emt 0:00:30]} Rh5 {[%emt 0:00:30]} 53. Ke3 {[%emt 0:00:30]} Rc5 {[%emt 0:00:30]} 54. Kd4 {[%emt 0:00:30]} Rb5 {[%emt 0:00:30]} 55. Ke3 {[%emt 0:00:30]} Kf5 {[%emt 0:00:30]} 56. Kf3 {[%emt 0:00:30]} Rc5 {[%emt 0:00:41]} 57. Kg3 {[%emt 0:00:14]} Rb5 {[%emt 0:00:41]} 58. Kf3 {[%emt 0:00:05]} a4 {[%emt 0:00:17]} 59. Rxa4 {[%emt 0:00:50]} Rb3+ {[%emt 0:00:05]} 60. Kg2 {[%emt 0:00:11]} Re3 {[%emt 0:00:59]} 61. Ra6 {[%emt 0:00:40]} Re4 {[%emt 0:01:01]} 62. Kg3 {[%emt 0:00:01]} Re3+ {[%emt 0:00:00]} 63. Kg2 {[%emt 0:00:06]} Re6 {[%emt 0:00:30]} 64. Rxe6 {[%emt 0:01:04]} Kxe6 {[%emt 0:00:06]} 65. Kf3 {[%emt 0:00:51]} Kf5 {[%emt 0:00:56]} 66. Kg3 {[%emt 0:00:30]} g5 {[%emt 0:00:00]} 1/2-1/2

[Event "Turkish Club Cup 2019"]
[Site "Konya"]
[Date "2019.07.17"]
[Round "3"]
[White "Guder, Serkan"]
[Black "Gundogdu, Mustafa Yalin"]
[Result "1-0"]
[ECO "B23"]
[WhiteElo "1872"]
[BlackElo "1651"]
[Annotator "NA"]
[PlyCount "55"]
[EventDate "2019.07.16"]
[EventType "team-tourn"]
[EventCountry "TUR"]
[SourceTitle "playchess.com"]
[Source "ChessBase"]
[SourceQuality "1"]
[TimeControl "5400+30"]

1. e4 c5 2. Nc3 d6 3. f4 g6 4. Nf3 Bg7 5. Bc4 Nc6 6. O-O e6 7. d3 Nge7 8. Qe1 O-O 9. f5 d5 10. Bb3 c4 11. dxc4 dxe4 12. f6 Bxf6 13. Nxe4 Bg7 14. Bg5 h6 15. Rd1 Qc7 16. Bf6 e5 17. c5 b6 18. Bxg7 Kxg7 19. Nd6 f6 20. Qg3 {[%emt 0:42:00]} bxc5 {[%emt 1:10:00]} 21. Bf7 {[%emt 0:19:30]} Bd7 {[%emt 0:20:39]} 22. Bxg6 {[%emt 0:05:30]} Nd4 {[%emt 0:08:15]} 23. Be4+ {[%emt 0:07:30]} Kh8 {[%emt 0:00:26]} 24. Rxd4 {[%emt 0:07:47]} cxd4 {[%emt 0:01:02]} 25. Nxe5 {[%emt 0:03:48]} fxe5 {[%emt 0:02:02]} 26. Nf7+ {[%emt 0:00:21]} Rxf7 {[%emt 0:00:01]} 27. Rxf7 {[%emt 0:00:06]} Rg8 {[%emt 0:00:20]} 28. Rh7# {[%emt 0:00:37]} 1-0